[Event "Slovakia Open Piestany-A 2022"]
[Site "Piestany"]
[Date "2022.07.12"]
[Round "2.1"]
[White "Demchenko, Anton"]
[Black "Niedbala, Bartlomiej"]
[Result "1/2-1/2"]
[ECO "B38"]
[WhiteElo "2653"]
[BlackElo "2381"]
[Annotator "ChessBase"]
[PlyCount "155"]
[EventDate "2022.07.12"]
[EventType "swiss"]
[EventCountry "SVK"]
[SourceTitle "playchess.com"]
[Source "ChessBase"]
[SourceQuality "1"]
[TimeControl "40/5400+30:1800+30"]

1. e4 {[%emt 0:00:07]} c5 {[%emt 0:00:08]} 2. Nf3 {[%emt 0:00:05]} g6 {[%emt 0:00:09]} 3. d4 {[%emt 0:03:37]} cxd4 {[%emt 0:00:07]} 4. Nxd4 {[%emt 0:00:02]} Bg7 {[%emt 0:00:08]} 5. c4 {[%emt 0:00:05]} Nc6 {[%emt 0:00:03]} 6. Be3 {[%emt 0:01:56]} Qb6 {[%emt 0:00:47]} 7. Nb5 {[%emt 0:05:11]} Qa5+ {[%emt 0:00:25]} 8. Bd2 {[%emt 0:04:02]} Qd8 {[%emt 0:00:15]} 9. N1c3 {[%emt 0:00:34]} a6 {[%emt 0:06:46]} 10. Na3 {[%emt 0:00:06]} d6 {[%emt 0:02:53]} 11. Be2 {[%emt 0:00:10]} Nd4 {[%emt 0:11:47]} 12. O-O {[%emt 0:03:13]} Nf6 {[%emt 0:01:41]} 13. Nc2 {[%emt 0:03:24]} Nxc2 {[%emt 0:07:27]} 14. Qxc2 {[%emt 0:00:03]} O-O {[%emt 0:01:41]} 15. Rac1 {[%emt 0:29:03]} Be6 {[%emt 0:06:22]} 16. b3 {[%emt 0:00:05]} Rc8 {[%emt 0:02:27]} 17. Qd3 {[%emt 0:00:19]} Nd7 {[%emt 0:10:54]} 18. Nd5 {[%emt 0:00:55]} Nc5 {[%emt 0:07:07]} 19. Qe3 {[%emt 0:00:54]} Bd7 {[%emt 0:07:34]} 20. Bc3 {[%emt 0:03:04]} Bxc3 {[%emt 0:01:24]} 21. Nxc3 {[%emt 0:00:09]} a5 {[%emt 0:12:07]} 22. Rcd1 {[%emt 0:03:04]} Qe8 {[%emt 0:05:39]} 23. f4 {[%emt 0:02:11]} f6 {[%emt 0:05:32]} 24. h4 {[%emt 0:03:03]} Kh8 {[%emt 0:01:33]} 25. e5 {[%emt 0:00:28]} Bc6 {[%emt 0:00:56]} 26. Bg4 {[%emt 0:06:01]} Rd8 {[%emt 0:00:44]} 27. Rfe1 {[%emt 0:11:35]} Qf7 {[%emt 0:01:05]} 28. e6 {[%emt 0:02:00]} Qg7 {[%emt 0:00:31]} 29. Nd5 {[%emt 0:00:13]} Bxd5 {[%emt 0:03:51]} 30. Rxd5 {[%emt 0:08:27]} f5 {[%emt 0:00:30]} 31. Bf3 {[%emt 0:00:05]} h5 {[%emt 0:00:17]} 32. Rd2 {[%emt 0:01:57]} Rb8 {[%emt 0:01:08]} 33. Bd5 {[%emt 0:01:58]} b5 {[%emt 0:00:54]} 34. cxb5 {[%emt 0:01:50]} Rxb5 {[%emt 0:00:03]} 35. Bc4 {[%emt 0:01:52]} Rb6 {[%emt 0:00:33]} 36. Rd5 {[%emt 0:00:17]} Qf6 {[%emt 0:01:26]} 37. g3 {[%emt 0:04:41]} Rfb8 {[%emt 0:01:00]} 38. Rxc5 {[%emt 0:02:03]} dxc5 {[%emt 0:00:05]} 39. Qxc5 {[%emt 0:00:04]} Qc3 {[%emt 0:01:24]} 40. Kf2 {[%emt 0:00:58]} Rd6 {[%emt 0:00:32]} 41. Re2 {[%emt 0:07:50]} Qb4 {[%emt 0:19:04]} 42. Qc7 {[%emt 0:05:25]} Rd1 {[%emt 0:05:07]} 43. a3 {[%emt 0:00:49]} Qd6 {[%emt 0:03:31]} 44. Qxd6 {[%emt 0:00:26]} Rxd6 {[%emt 0:00:06]} 45. a4 {[%emt 0:00:02]} Kg7 {[%emt 0:01:17]} 46. Re5 {[%emt 0:00:25]} Ra8 {[%emt 0:00:11]} 47. Ke3 {[%emt 0:00:31]} Kf8 {[%emt 0:01:34]} 48. Rb5 {[%emt 0:00:43]} Kg7 {[%emt 0:01:47]} 49. Bd5 {[%emt 0:01:36]} Rad8 {[%emt 0:01:55]} 50. Bc4 {[%emt 0:01:06]} Ra8 {[%emt 0:00:26]} 51. Rb7 {[%emt 0:04:49]} Kf6 {[%emt 0:00:17]} 52. Rc7 {[%emt 0:00:04]} Rdd8 {[%emt 0:00:47]} 53. Rc6 {[%emt 0:05:24]} Ra7 {[%emt 0:00:30]} 54. Rb6 {[%emt 0:00:52]} Raa8 {[%emt 0:00:30]} 55. Rb5 {[%emt 0:00:10]} Ra6 {[%emt 0:00:21]} 56. Rb7 {[%emt 0:01:30]} Raa8 {[%emt 0:00:20]} 57. Rb6 {[%emt 0:00:51]} Ra7 {[%emt 0:00:20]} 58. Rc6 {[%emt 0:00:45]} Raa8 {[%emt 0:00:28]} 59. Rc7 {[%emt 0:00:14]} Rd6 {[%emt 0:00:05]} 60. Rc5 {[%emt 0:00:05]} Rdd8 {[%emt 0:00:21]} 61. Bd5 {[%emt 0:00:53]} Ra6 {[%emt 0:01:20]} 62. Rb5 {[%emt 0:00:13]} Rad6 {[%emt 0:00:40]} 63. Bc4 {[%emt 0:00:08]} Ra6 {[%emt 0:00:17]} 64. Re5 {[%emt 0:00:23]} Ra7 {[%emt 0:00:41]} 65. Ke2 {[%emt 0:03:00]} Rd6 {[%emt 0:00:19]} 66. Ke3 {[%emt 0:01:28]} Rd8 {[%emt 0:00:16]} 67. Rd5 {[%emt 0:01:30]} Raa8 {[%emt 0:01:03]} 68. Rc5 {[%emt 0:02:25]} Ra7 {[%emt 0:00:17]} 69. Rb5 {[%emt 0:00:42]} Raa8 {[%emt 0:00:04]} 70. Bd5 {[%emt 0:00:17]} Ra6 {[%emt 0:00:06]} 71. Rc5 {[%emt 0:00:07]} Rad6 {[%emt 0:00:14]} 72. Bc4 {[%emt 0:00:06]} Ra8 {[%emt 0:00:11]} 73. Rc7 {[%emt 0:00:05]} Rdd8 {[%emt 0:00:17]} 74. Rc6 {[%emt 0:01:19]} Ra7 {[%emt 0:00:04]} 75. Rb6 {[%emt 0:00:51]} Raa8 {[%emt 0:00:06]} 76. Rb7 {[%emt 0:00:13]} Rd6 {[%emt 0:00:09]} 77. Rb5 {[%emt 0:00:04]} Rdd8 {[%emt 0:00:16]} 78. Bd5 {[%emt 0:00:54]} 1/2-1/2

[Event "Slovakia Open Piestany-A 2022"]
[Site "Piestany"]
[Date "2022.07.12"]
[Round "2.2"]
[White "Czerw, Dawid"]
[Black "Donchenko, Alexander"]
[Result "1/2-1/2"]
[ECO "B19"]
[WhiteElo "2391"]
[BlackElo "2640"]
[Annotator "ChessBase"]
[PlyCount "128"]
[EventDate "2022.07.12"]
[EventType "swiss"]
[EventCountry "SVK"]
[SourceTitle "playchess.com"]
[Source "ChessBase"]
[SourceQuality "1"]
[TimeControl "40/5400+30:1800+30"]

1. e4 {[%emt 0:00:03]} c6 {[%emt 0:00:17]} 2. d4 {[%emt 0:00:25]} d5 {[%emt 0:00:06]} 3. Nc3 {[%emt 0:00:04]} dxe4 {[%emt 0:00:35]} 4. Nxe4 {[%emt 0:00:06]} Bf5 {[%emt 0:01:02]} 5. Ng3 {[%emt 0:00:07]} Bg6 {[%emt 0:00:05]} 6. h4 {[%emt 0:00:05]} h6 {[%emt 0:00:05]} 7. Nf3 {[%emt 0:00:07]} Nd7 {[%emt 0:00:27]} 8. h5 {[%emt 0:00:34]} Bh7 {[%emt 0:00:06]} 9. Bd3 {[%emt 0:00:14]} Bxd3 {[%emt 0:00:07]} 10. Qxd3 {[%emt 0:00:04]} e6 {[%emt 0:00:07]} 11. Bf4 {[%emt 0:00:29]} Qa5+ {[%emt 0:01:06]} 12. Bd2 {[%emt 0:00:07]} Bb4 {[%emt 0:00:49]} 13. c3 {[%emt 0:00:15]} Be7 {[%emt 0:00:09]} 14. c4 {[%emt 0:00:21]} Qc7 {[%emt 0:00:33]} 15. d5 {[%emt 0:06:00]} cxd5 {[%emt 0:00:52]} 16. cxd5 {[%emt 0:00:06]} Qd6 {[%emt 0:00:30]} 17. Qb5 {[%emt 0:00:43]} Ngf6 {[%emt 0:12:22]} 18. dxe6 {[%emt 0:01:53]} Qxe6+ {[%emt 0:00:22]} 19. Kf1 {[%emt 0:00:32]} a6 {[%emt 0:13:59]} 20. Qf5 {[%emt 0:37:31]} O-O {[%emt 0:11:42]} 21. Qxe6 {[%emt 0:07:20]} fxe6 {[%emt 0:00:08]} 22. Re1 {[%emt 0:02:54]} Kf7 {[%emt 0:11:43]} 23. Nd4 {[%emt 0:13:21]} Nc5 {[%emt 0:00:59]} 24. Bb4 {[%emt 0:03:45]} Rfe8 {[%emt 0:03:05]} 25. Bxc5 {[%emt 0:02:33]} Bxc5 {[%emt 0:00:14]} 26. Nf3 {[%emt 0:01:06]} Rac8 {[%emt 0:04:29]} 27. Rh4 {[%emt 0:02:09]} Bd6 {[%emt 0:03:36]} 28. Ne4 {[%emt 0:02:13]} Bb8 {[%emt 0:00:16]} 29. Nxf6 {[%emt 0:02:31]} gxf6 {[%emt 0:00:12]} 30. Rg4 {[%emt 0:00:59]} Rg8 {[%emt 0:16:03]} 31. Rge4 {[%emt 0:00:48]} Rge8 {[%emt 0:01:26]} 32. Nd4 {[%emt 0:07:35]} Be5 {[%emt 0:01:47]} 33. Nf3 {[%emt 0:00:15]} Bxb2 {[%emt 0:02:01]} 34. Rb4 {[%emt 0:00:18]} Rc2 {[%emt 0:00:49]} 35. Rxb7+ {[%emt 0:01:55]} Re7 {[%emt 0:00:04]} 36. Rb6 {[%emt 0:01:03]} a5 {[%emt 0:02:21]} 37. Re2 {[%emt 0:05:07]} Rc1+ {[%emt 0:00:16]} 38. Re1 {[%emt 0:00:12]} Rxe1+ {[%emt 0:02:27]} 39. Kxe1 {[%emt 0:00:12]} Ba3 {[%emt 0:04:57]} 40. Ke2 {[%emt 0:02:30]} Rc7 {[%emt 0:08:16]} 41. Rb5 {[%emt 0:32:28]} Rc2+ {[%emt 0:30:30]} 42. Kd3 {[%emt 0:00:30]} Rxf2 {[%emt 0:00:30]} 43. Rxa5 {[%emt 0:00:30]} Be7 {[%emt 0:00:30]} 44. Ra7 {[%emt 0:00:30]} e5 {[%emt 0:00:30]} 45. Nh4 {[%emt 0:00:30]} Ke6 {[%emt 0:00:30]} 46. g4 {[%emt 0:00:30]} Bc5 {[%emt 0:00:30]} 47. Ra4 {[%emt 0:00:30]} Kd5 {[%emt 0:00:30]} 48. Nf5 {[%emt 0:00:30]} Rf3+ {[%emt 0:00:30]} 49. Ke2 {[%emt 0:00:30]} e4 {[%emt 0:00:30]} 50. Nxh6 {[%emt 0:00:30]} Rf2+ {[%emt 0:00:30]} 51. Ke1 {[%emt 0:00:30]} Rg2 {[%emt 0:00:30]} 52. Kf1 {[%emt 0:00:30]} Rg1+ {[%emt 0:00:30]} 53. Ke2 {[%emt 0:00:30]} Rg2+ {[%emt 0:00:30]} 54. Kf1 {[%emt 0:00:30]} Rg1+ {[%emt 0:00:30]} 55. Ke2 {[%emt 0:00:30]} Ke5 {[%emt 0:00:30]} 56. Ra5 {[%emt 0:00:30]} Rg2+ {[%emt 0:00:30]} 57. Kf1 {[%emt 0:00:30]} Rc2 {[%emt 0:00:30]} 58. Nf5 {[%emt 0:00:30]} Kf4 {[%emt 0:00:30]} 59. h6 {[%emt 0:00:30]} e3 {[%emt 0:00:30]} 60. Ra4+ {[%emt 0:00:30]} Kf3 {[%emt 0:00:30]} 61. Nh4+ {[%emt 0:00:30]} Kg3 {[%emt 0:00:30]} 62. Nf5+ {[%emt 0:00:30]} Kf3 {[%emt 0:00:30]} 63. Nh4+ {[%emt 0:00:30]} Kg3 {[%emt 0:00:30]} 64. Nf5+ {[%emt 0:00:30]} Kf3 {[%emt 0:00:30]} 1/2-1/2

[Event "Slovakia Open Piestany-A 2022"]
[Site "Piestany"]
[Date "2022.07.12"]
[Round "2.3"]
[White "Moroni, Luca Jr"]
[Black "Marek, Matyas"]
[Result "1-0"]
[ECO "E62"]
[WhiteElo "2584"]
[BlackElo "2354"]
[Annotator "ChessBase"]
[PlyCount "59"]
[EventDate "2022.07.12"]
[EventType "swiss"]
[EventCountry "SVK"]
[SourceTitle "playchess.com"]
[Source "ChessBase"]
[SourceQuality "1"]
[TimeControl "40/5400+30:1800+30"]

1. c4 {[%emt 0:00:03]} Nf6 {[%emt 0:00:22]} 2. Nc3 {[%emt 0:00:09]} g6 {[%emt 0:00:04]} 3. g3 {[%emt 0:00:06]} Bg7 {[%emt 0:00:05]} 4. Bg2 {[%emt 0:00:05]} O-O {[%emt 0:00:05]} 5. d4 {[%emt 0:00:04]} d6 {[%emt 0:00:29]} 6. Nf3 {[%emt 0:00:06]} Nc6 {[%emt 0:00:27]} 7. O-O {[%emt 0:00:06]} Bf5 {[%emt 0:00:15]} 8. Nh4 {[%emt 0:00:04]} Bd7 {[%emt 0:00:40]} 9. f4 {[%emt 0:00:03]} Rb8 {[%emt 0:21:34]} 10. e4 {[%emt 0:06:22]} e5 {[%emt 0:03:44]} 11. dxe5 {[%emt 0:00:21]} dxe5 {[%emt 0:00:08]} 12. f5 {[%emt 0:00:03]} Nd4 {[%emt 0:04:28]} 13. g4 {[%emt 0:06:11]} h6 {[%emt 0:09:34]} 14. g5 {[%emt 0:04:27]} Nh7 {[%emt 0:07:39]} 15. f6 {[%emt 0:06:47]} Bh8 {[%emt 0:01:17]} 16. Nd5 {[%emt 0:00:50]} Nxg5 {[%emt 0:03:16]} 17. Bxg5 {[%emt 0:06:08]} hxg5 {[%emt 0:00:07]} 18. Nf3 {[%emt 0:04:55]} Nxf3+ {[%emt 0:25:44]} 19. Qxf3 {[%emt 0:01:25]} Re8 {[%emt 0:00:11]} 20. Rad1 {[%emt 0:06:32]} c6 {[%emt 0:02:03]} 21. Ne3 {[%emt 0:04:21]} Qc8 {[%emt 0:02:16]} 22. Qg3 {[%emt 0:00:31]} Be6 {[%emt 0:01:41]} 23. Qxg5 {[%emt 0:02:01]} Rd8 {[%emt 0:07:30]} 24. Qxe5 {[%emt 0:00:48]} Rxd1 {[%emt 0:00:12]} 25. Rxd1 {[%emt 0:00:31]} Qf8 {[%emt 0:00:15]} 26. Qd4 {[%emt 0:06:59]} b5 {[%emt 0:01:57]} 27. c5 {[%emt 0:01:38]} Bxa2 {[%emt 0:00:34]} 28. e5 {[%emt 0:00:11]} Qe8 {[%emt 0:00:39]} 29. Qd6 {[%emt 0:00:50]} Rc8 {[%emt 0:02:49]} 30. Bh3 {[%emt 0:00:23]} 1-0

[Event "Slovakia Open Piestany-A 2022"]
[Site "Piestany"]
[Date "2022.07.12"]
[Round "2.4"]
[White "Favaloro, Andrea"]
[Black "Schitco, Ivan"]
[Result "1/2-1/2"]
[ECO "E65"]
[WhiteElo "2361"]
[BlackElo "2490"]
[Annotator "ChessBase"]
[PlyCount "55"]
[EventDate "2022.07.12"]
[EventType "swiss"]
[EventCountry "SVK"]
[SourceTitle "playchess.com"]
[Source "ChessBase"]
[SourceQuality "1"]
[TimeControl "40/5400+30:1800+30"]

1. Nf3 {[%emt 0:00:08]} Nf6 {[%emt 0:00:11]} 2. g3 {[%emt 0:00:12]} g6 {[%emt 0:00:10]} 3. Bg2 {[%emt 0:00:09]} Bg7 {[%emt 0:00:10]} 4. d4 {[%emt 0:00:11]} O-O {[%emt 0:00:35]} 5. c4 {[%emt 0:00:14]} d6 {[%emt 0:00:19]} 6. Nc3 {[%emt 0:00:20]} c5 {[%emt 0:00:30]} 7. O-O {[%emt 0:01:01]} Nc6 {[%emt 0:00:32]} 8. dxc5 {[%emt 0:00:21]} dxc5 {[%emt 0:00:04]} 9. Be3 {[%emt 0:00:16]} Be6 {[%emt 0:00:32]} 10. Qa4 {[%emt 0:00:31]} Nd4 {[%emt 0:00:25]} 11. Rac1 {[%emt 0:00:52]} a6 {[%emt 0:00:29]} 12. Ng5 {[%emt 0:10:56]} Bd7 {[%emt 0:10:11]} 13. Qa3 {[%emt 0:02:41]} Ng4 {[%emt 0:10:18]} 14. Bf4 {[%emt 0:24:45]} h6 {[%emt 0:16:29]} 15. Nge4 {[%emt 0:07:29]} g5 {[%emt 0:08:03]} 16. Bd2 {[%emt 0:08:05]} Ne5 {[%emt 0:06:29]} 17. b3 {[%emt 0:04:16]} Bc6 {[%emt 0:05:04]} 18. Rcd1 {[%emt 0:06:46]} b6 {[%emt 0:07:15]} 19. f4 {[%emt 0:02:16]} f5 {[%emt 0:01:40]} 20. Nf2 {[%emt 0:04:34]} gxf4 {[%emt 0:02:45]} 21. Bxf4 {[%emt 0:03:59]} Bxg2 {[%emt 0:02:51]} 22. Kxg2 {[%emt 0:01:15]} Qd7 {[%emt 0:08:43]} 23. Bxe5 {[%emt 0:11:12]} Bxe5 {[%emt 0:00:47]} 24. Nd3 {[%emt 0:00:17]} Qb7+ {[%emt 0:02:11]} 25. Nd5 {[%emt 0:04:01]} Bg7 {[%emt 0:04:38]} 26. N3f4 {[%emt 0:02:40]} e5 {[%emt 0:07:24]} 27. Ng6 {[%emt 0:01:36]} Rf7 {[%emt 0:02:10]} 28. e3 {[%emt 0:00:13]} 1/2-1/2

[Event "Slovakia Open Piestany-A 2022"]
[Site "Piestany"]
[Date "2022.07.12"]
[Round "2.5"]
[White "Omelja, Artem"]
[Black "Straka, Jozef"]
[Result "1-0"]
[ECO "E14"]
[WhiteElo "2478"]
[BlackElo "2300"]
[Annotator "ChessBase"]
[PlyCount "127"]
[EventDate "2022.07.12"]
[EventType "swiss"]
[EventCountry "SVK"]
[SourceTitle "playchess.com"]
[Source "ChessBase"]
[SourceQuality "1"]
[TimeControl "40/5400+30:1800+30"]

1. Nf3 {[%emt 0:07:05]} Nf6 {[%emt 0:00:23]} 2. c4 {[%emt 0:00:10]} e6 {[%emt 0:00:21]} 3. b3 {[%emt 0:01:11]} d5 {[%emt 0:02:43]} 4. e3 {[%emt 0:02:18]} Be7 {[%emt 0:01:46]} 5. Bb2 {[%emt 0:01:04]} b6 {[%emt 0:04:07]} 6. Nc3 {[%emt 0:00:27]} Bb7 {[%emt 0:02:01]} 7. cxd5 {[%emt 0:00:20]} exd5 {[%emt 0:00:44]} 8. d4 {[%emt 0:00:13]} O-O {[%emt 0:04:01]} 9. Bd3 {[%emt 0:00:06]} Nbd7 {[%emt 0:09:32]} 10. O-O {[%emt 0:00:14]} c5 {[%emt 0:04:09]} 11. Rc1 {[%emt 0:04:03]} a6 {[%emt 0:06:35]} 12. dxc5 {[%emt 0:02:55]} bxc5 {[%emt 0:00:56]} 13. Na4 {[%emt 0:04:17]} Bd6 {[%emt 0:05:43]} 14. Nc3 {[%emt 0:11:53]} Re8 {[%emt 0:03:47]} 15. Re1 {[%emt 0:03:20]} Qe7 {[%emt 0:06:23]} 16. Bf1 {[%emt 0:00:12]} Rad8 {[%emt 0:10:40]} 17. g3 {[%emt 0:00:09]} Ne5 {[%emt 0:03:57]} 18. Nxe5 {[%emt 0:00:10]} Bxe5 {[%emt 0:00:21]} 19. Bg2 {[%emt 0:03:02]} d4 {[%emt 0:13:45]} 20. exd4 {[%emt 0:00:08]} cxd4 {[%emt 0:00:07]} 21. Na4 {[%emt 0:01:32]} Bxg2 {[%emt 0:03:51]} 22. Kxg2 {[%emt 0:00:07]} Qd6 {[%emt 0:10:23]} 23. Nc5 {[%emt 0:07:26]} d3 {[%emt 0:01:42]} 24. Nxd3 {[%emt 0:00:18]} Bxb2 {[%emt 0:02:48]} 25. Rxe8+ {[%emt 0:00:57]} Rxe8 {[%emt 0:00:23]} 26. Nxb2 {[%emt 0:00:10]} Qa3 {[%emt 0:00:18]} 27. Nd3 {[%emt 0:04:52]} h6 {[%emt 0:01:13]} 28. Rc2 {[%emt 0:01:04]} Nd5 {[%emt 0:00:57]} 29. Qg4 {[%emt 0:02:20]} Qd6 {[%emt 0:00:41]} 30. Rc8 {[%emt 0:00:43]} Nf6 {[%emt 0:00:40]} 31. Rxe8+ {[%emt 0:01:15]} Nxe8 {[%emt 0:00:02]} 32. Qc4 {[%emt 0:00:53]} Nc7 {[%emt 0:00:35]} 33. b4 {[%emt 0:01:40]} Ne6 {[%emt 0:00:23]} 34. Nc5 {[%emt 0:03:09]} Nd4 {[%emt 0:00:56]} 35. Nb3 {[%emt 0:02:06]} Nxb3 {[%emt 0:00:30]} 36. Qxb3 {[%emt 0:00:53]} Qc6+ {[%emt 0:00:10]} 37. Qf3 {[%emt 0:01:58]} Qc4 {[%emt 0:00:15]} 38. a3 {[%emt 0:08:31]} Qb5 {[%emt 0:00:02]} 39. h4 {[%emt 0:01:03]} h5 {[%emt 0:01:04]} 40. Qa8+ {[%emt 0:04:13]} Kh7 {[%emt 0:00:02]} 41. Qe4+ {[%emt 0:30:11]} g6 {[%emt 0:02:14]} 42. Kf3 {[%emt 0:00:00]} Qf1 {[%emt 0:04:02]} 43. Qc2 {[%emt 0:00:00]} Qb5 {[%emt 0:03:07]} 44. Qb3 {[%emt 0:00:00]} Qc6+ {[%emt 0:01:50]} 45. Ke3 {[%emt 0:00:00]} Qb6+ {[%emt 0:02:38]} 46. Ke2 {[%emt 0:00:00]} Qb5+ {[%emt 0:00:16]} 47. Ke1 {[%emt 0:00:00]} Kg8 {[%emt 0:01:52]} 48. a4 {[%emt 0:00:00]} Qe5+ {[%emt 0:00:14]} 49. Kf1 {[%emt 0:00:00]} Qe4 {[%emt 0:00:31]} 50. Kg1 {[%emt 0:00:00]} Qe1+ {[%emt 0:00:25]} 51. Kg2 {[%emt 0:00:00]} Qe4+ {[%emt 0:00:06]} 52. Qf3 {[%emt 0:00:00]} Qxb4 {[%emt 0:11:53]} 53. Qa8+ {[%emt 0:00:00]} Kg7 {[%emt 0:00:27]} 54. Qxa6 {[%emt 0:00:00]} Qe4+ {[%emt 0:00:03]} 55. Kg1 {[%emt 0:00:00]} Qe1+ {[%emt 0:00:10]} 56. Qf1 {[%emt 0:00:00]} Qa5 {[%emt 0:00:13]} 57. Qc4 {[%emt 0:00:00]} Qe5 {[%emt 0:03:14]} 58. Qc6 {[%emt 0:00:55]} Qa5 {[%emt 0:01:45]} 59. Kf1 {[%emt 0:01:05]} Qe5 {[%emt 0:01:45]} 60. Qa8 {[%emt 0:00:36]} g5 {[%emt 0:00:47]} 61. hxg5 {[%emt 0:02:18]} Qxg5 {[%emt 0:00:02]} 62. Qe4 {[%emt 0:01:12]} Qc5 {[%emt 0:01:05]} 63. Kg2 {[%emt 0:00:13]} Kh6 {[%emt 0:01:09]} 64. Qe3+ {[%emt 0:00:10]} 1-0

[Event "Slovakia Open Piestany-A 2022"]
[Site "Piestany"]
[Date "2022.07.12"]
[Round "2.6"]
[White "Bhambure, Shantanu"]
[Black "Kozak, Antoni"]
[Result "0-1"]
[ECO "D43"]
[WhiteElo "2320"]
[BlackElo "2475"]
[Annotator "ChessBase"]
[PlyCount "80"]
[EventDate "2022.07.12"]
[EventType "swiss"]
[EventCountry "SVK"]
[SourceTitle "playchess.com"]
[Source "ChessBase"]
[SourceQuality "1"]
[TimeControl "40/5400+30:1800+30"]

1. d4 {[%emt 0:00:11]} Nf6 {[%emt 0:00:13]} 2. c4 {[%emt 0:00:07]} e6 {[%emt 0:00:03]} 3. Nf3 {[%emt 0:00:19]} d5 {[%emt 0:00:04]} 4. Nc3 {[%emt 0:00:12]} c6 {[%emt 0:00:04]} 5. Bg5 {[%emt 0:00:21]} h6 {[%emt 0:00:05]} 6. Bh4 {[%emt 0:00:47]} dxc4 {[%emt 0:00:06]} 7. e4 {[%emt 0:00:08]} g5 {[%emt 0:00:03]} 8. Bg3 {[%emt 0:00:04]} b5 {[%emt 0:00:03]} 9. Be2 {[%emt 0:00:06]} Bb7 {[%emt 0:02:16]} 10. O-O {[%emt 0:00:26]} Nbd7 {[%emt 0:00:21]} 11. Ne5 {[%emt 0:00:19]} h5 {[%emt 0:00:06]} 12. Nxd7 {[%emt 0:03:32]} Qxd7 {[%emt 0:00:52]} 13. Be5 {[%emt 0:03:42]} Rh6 {[%emt 0:00:30]} 14. Qc2 {[%emt 0:08:14]} Ng4 {[%emt 0:11:29]} 15. Bxg4 {[%emt 0:03:04]} hxg4 {[%emt 0:00:22]} 16. Rfd1 {[%emt 0:10:15]} f6 {[%emt 0:11:05]} 17. Bg3 {[%emt 0:00:59]} O-O-O {[%emt 0:02:28]} 18. b3 {[%emt 0:12:46]} f5 {[%emt 0:06:06]} 19. Be5 {[%emt 0:07:19]} b4 {[%emt 0:15:20]} 20. Na4 {[%emt 0:00:34]} c3 {[%emt 0:00:07]} 21. exf5 {[%emt 0:11:00]} Qd5 {[%emt 0:09:15]} 22. Qe2 {[%emt 0:09:45]} exf5 {[%emt 0:01:11]} 23. Nc5 {[%emt 0:02:16]} Re8 {[%emt 0:04:17]} 24. Nxb7 {[%emt 0:01:30]} Kxb7 {[%emt 0:00:04]} 25. a3 {[%emt 0:01:13]} bxa3 {[%emt 0:01:15]} 26. Qc2 {[%emt 0:02:37]} Rxe5 {[%emt 0:11:12]} 27. dxe5 {[%emt 0:00:42]} Qxe5 {[%emt 0:00:04]} 28. g3 {[%emt 0:02:43]} Bb4 {[%emt 0:03:58]} 29. Re1 {[%emt 0:06:16]} Qc5 {[%emt 0:00:57]} 30. Rad1 {[%emt 0:01:27]} Rd6 {[%emt 0:01:04]} 31. Rxd6 {[%emt 0:03:08]} Qxd6 {[%emt 0:00:03]} 32. Rd1 {[%emt 0:02:42]} Qe5 {[%emt 0:05:15]} 33. Qd3 {[%emt 0:01:34]} Qd5 {[%emt 0:00:31]} 34. Qc2 {[%emt 0:00:43]} Qe4 {[%emt 0:00:32]} 35. Rc1 {[%emt 0:00:22]} Kb6 {[%emt 0:03:43]} 36. Qd1 {[%emt 0:01:24]} Qd5 {[%emt 0:01:24]} 37. Qe2 {[%emt 0:00:25]} Qd2 {[%emt 0:01:38]} 38. Rc2 {[%emt 0:00:35]} Qxe2 {[%emt 0:00:05]} 39. Rxe2 {[%emt 0:00:03]} Kc5 {[%emt 0:00:20]} 40. Kf1 {[%emt 0:00:11]} Kd4 {[%emt 0:00:12]} 0-1

[Event "Slovakia Open Piestany-A 2022"]
[Site "Piestany"]
[Date "2022.07.12"]
[Round "2.7"]
[White "Gretarsson, Helgi Ass"]
[Black "Svana, Peter"]
[Result "1-0"]
[ECO "E91"]
[WhiteElo "2472"]
[BlackElo "2280"]
[Annotator "ChessBase"]
[PlyCount "85"]
[EventDate "2022.07.12"]
[EventType "swiss"]
[EventCountry "SVK"]
[SourceTitle "playchess.com"]
[Source "ChessBase"]
[SourceQuality "1"]
[TimeControl "40/5400+30:1800+30"]

1. c4 {[%emt 0:00:04]} Nf6 {[%emt 0:00:10]} 2. Nf3 {[%emt 0:00:01]} g6 {[%emt 0:00:13]} 3. Nc3 {[%emt 0:00:07]} Bg7 {[%emt 0:00:11]} 4. e4 {[%emt 0:00:22]} O-O {[%emt 0:01:00]} 5. d4 {[%emt 0:00:12]} d6 {[%emt 0:00:56]} 6. Be2 {[%emt 0:00:13]} Bg4 {[%emt 0:04:32]} 7. Be3 {[%emt 0:04:05]} Na6 {[%emt 0:10:41]} 8. h3 {[%emt 0:18:43]} Bd7 {[%emt 0:06:36]} 9. O-O {[%emt 0:03:53]} c6 {[%emt 0:03:17]} 10. Nd2 {[%emt 0:01:15]} e5 {[%emt 0:03:07]} 11. d5 {[%emt 0:26:22]} Ne8 {[%emt 0:14:56]} 12. Rb1 {[%emt 0:08:10]} f5 {[%emt 0:04:34]} 13. exf5 {[%emt 0:03:06]} gxf5 {[%emt 0:03:21]} 14. f4 {[%emt 0:00:05]} Kh8 {[%emt 0:01:05]} 15. Nf3 {[%emt 0:05:04]} Nac7 {[%emt 0:20:59]} 16. a3 {[%emt 0:07:37]} Qe7 {[%emt 0:01:27]} 17. Qd2 {[%emt 0:07:07]} e4 {[%emt 0:01:37]} 18. Nh2 {[%emt 0:00:10]} c5 {[%emt 0:00:55]} 19. g4 {[%emt 0:01:05]} Bf6 {[%emt 0:08:09]} 20. Kh1 {[%emt 0:00:39]} Qg7 {[%emt 0:00:38]} 21. Rg1 {[%emt 0:00:34]} Bd4 {[%emt 0:01:41]} 22. gxf5 {[%emt 0:04:51]} Bxe3 {[%emt 0:00:03]} 23. Qxe3 {[%emt 0:00:01]} Qd4 {[%emt 0:00:01]} 24. Qxd4+ {[%emt 0:01:35]} cxd4 {[%emt 0:00:06]} 25. Nxe4 {[%emt 0:00:01]} Bxf5 {[%emt 0:00:35]} 26. Bd3 {[%emt 0:00:02]} Nf6 {[%emt 0:01:21]} 27. Nf2 {[%emt 0:00:21]} Bd7 {[%emt 0:04:11]} 28. Rbe1 {[%emt 0:01:57]} b5 {[%emt 0:05:03]} 29. b3 {[%emt 0:00:26]} bxc4 {[%emt 0:00:43]} 30. bxc4 {[%emt 0:00:00]} Na6 {[%emt 0:00:24]} 31. Re7 {[%emt 0:01:56]} Nc5 {[%emt 0:00:23]} 32. Bb1 {[%emt 0:00:11]} Rae8 {[%emt 0:00:55]} 33. Rxe8 {[%emt 0:02:32]} Rxe8 {[%emt 0:00:35]} 34. Nf3 {[%emt 0:00:12]} Re2 {[%emt 0:01:07]} 35. Ng5 {[%emt 0:04:03]} Be8 {[%emt 0:00:30]} 36. Nd3 {[%emt 0:00:48]} Nxd3 {[%emt 0:01:31]} 37. Bxd3 {[%emt 0:00:02]} Re3 {[%emt 0:00:17]} 38. Rd1 {[%emt 0:00:37]} Nh5 {[%emt 0:00:58]} 39. Ne6 {[%emt 0:01:00]} Bf7 {[%emt 0:00:41]} 40. f5 {[%emt 0:00:02]} Rxh3+ {[%emt 0:00:00]} 41. Kg2 {[%emt 0:01:35]} Re3 {[%emt 0:10:00]} 42. Kf2 {[%emt 0:03:32]} Rh3 {[%emt 0:07:59]} 43. Ng5 {[%emt 0:01:39]} 1-0